fUSD/lending_fUSD_20260322
["ID","MTS","AMOUNT","RATE_DAILY","PERIOD"]
[408731641,1774179033434,-547.84430728,0.0001167,2]
[408731642,1774179033443,-547.84430728,0.0001167,2]
[408731643,1774179033453,-547.84430728,0.0001167,2]
[408731644,1774179033463,-547.84430728,0.0001167,2]
[408731645,1774179033472,-547.84430728,0.0001167,2]
[408731646,1774179033482,-547.84430728,0.0001167,2]
[408731647,1774179033492,-547.84430728,0.0001167,2]
[408731648,1774179033501,-547.84430728,0.0001167,2]
[408731649,1774179033511,-547.84430728,0.0001167,2]
[408731650,1774179033521,-547.84430728,0.0001167,2]
[408731651,1774179033540,-547.84430728,0.0001167,2]
[408731652,1774179033552,-547.84430728,0.0001167,2]
[408731653,1774179033562,-547.84430728,0.0001167,2]
[408731654,1774179033572,-547.84430728,0.0001167,2]
[408731655,1774179033582,-547.84430728,0.0001167,2]
[408731656,1774179033591,-547.84430728,0.0001167,2]
[408731657,1774179033600,-547.84430728,0.0001167,2]
[408731658,1774179033609,-500.0,0.0001167,2]
[408731659,1774179033620,-547.84430728,0.0001167,2]
[408731660,1774179033629,-547.84430728,0.0001167,2]
[408731661,1774179033638,-500.0,0.0001167,2]
[408731662,1774179033647,-547.84430728,0.0001167,2]
[408731663,1774179033657,-500.0,0.0001167,2]
[408731664,1774179033667,-547.84430728,0.0001167,2]
[408731665,1774179033676,-547.84430728,0.0001167,2]
[408731666,1774179033685,-500.0,0.0001167,2]
[408731667,1774179033694,-262.51731399,0.0001167,2]
[408731668,1774179033704,-547.84430728,0.0001167,2]
[408731669,1774179033713,-547.84430728,0.0001167,2]
[408731670,1774179033722,-500.0,0.0001167,2]
[408731671,1774179033731,-226.11470658,0.0001167,2]
[408731672,1774179033741,-523.89105331,0.0001167,2]
[408731673,1774179033750,-261.34444852,0.0001167,2]
[408731674,1774179033760,-500.0,0.0001167,2]
[408731675,1774179033769,-543.80119343,0.0001167,2]
[408731676,1774179033779,-543.80119343,0.0001167,2]
[408731677,1774179033788,-500.0,0.0001167,2]
[408731678,1774179033797,-543.80119343,0.0001167,2]
[408731679,1774179033807,-543.80119343,0.0001167,2]
[408731680,1774179033816,-360.0521678,0.0001167,2]
[408731681,1774179033825,-543.80119343,0.0001167,2]
[408731682,1774179033834,-543.80119343,0.0001167,2]
[408731683,1774179034170,-543.80119343,0.0001167,2]
[408731684,1774179034182,-543.80119343,0.0001167,2]
[408731685,1774179034191,-543.80119343,0.0001167,2]
[408731686,1774179034201,-543.80119343,0.0001167,2]
[408731687,1774179034211,-543.80119343,0.0001167,2]
[408731688,1774179034220,-543.80119343,0.0001167,2]
[408731689,1774179034230,-543.80119343,0.0001167,2]
[408731690,1774179034240,-543.80119343,0.0001167,2]
[408731691,1774179034249,-543.80119343,0.0001167,2]
[408731692,1774179034259,-543.80119343,0.0001167,2]
[408731693,1774179034268,-543.80119343,0.0001167,2]
[408731694,1774179034279,-543.80119343,0.0001167,2]
[408731695,1774179034288,-543.80119343,0.0001167,2]
[408731696,1774179034298,-543.80119343,0.0001167,2]
[408731697,1774179034307,-543.80119343,0.0001167,2]
[408731698,1774179034317,-543.80119343,0.0001167,2]
[408731699,1774179034327,-543.80119343,0.0001167,2]
[408731700,1774179034337,-543.80119343,0.0001167,2]
[408731701,1774179034347,-543.80119343,0.0001167,2]
[408731702,1774179034357,-543.80119343,0.0001167,2]
[408731703,1774179034367,-543.80119343,0.0001167,2]
[408731704,1774179034378,-543.80119343,0.0001167,2]
[408731705,1774179034388,-543.80119343,0.0001167,2]
[408731706,1774179034399,-543.80119343,0.0001167,2]
[408731707,1774179034409,-125138.3008979,0.00011671,2]
[408731708,1774179034418,-500.0,0.00011672,2]
[408731709,1774179034428,-500.0,0.00011672,2]
[408731710,1774179034437,-500.0,0.00011672,2]
[408731711,1774179034446,-164.410088,0.00011672,2]
[408731712,1774179034456,-500.0,0.00011672,2]
[408731713,1774179034466,-545.18019345,0.00011672,2]
[408731714,1774179034475,-500.0,0.00011672,2]
[408731715,1774179034485,-500.0,0.00011672,2]
[408731716,1774179034494,-500.0,0.00011672,2]
[408731717,1774179034503,-500.0,0.00011672,2]
[408731718,1774179034513,-480.07902863,0.00011672,2]
[408731719,1774179034523,-639.33145769,0.00011672,2]
[408731720,1774179034535,-500.0,0.00011672,2]
[408731721,1774179034547,-500.0,0.00011672,2]
[408731722,1774179034556,-500.0,0.00011672,2]
[408731723,1774179034565,-500.0,0.00011672,2]
[408731724,1774179034574,-239.7059624,0.00011672,2]
[408731725,1774179034585,-500.0,0.00011672,2]
[408731726,1774179034595,-500.0,0.00011672,2]
[408731727,1774179034604,-500.0,0.00011672,2]
[408731728,1774179034614,-500.0,0.00011672,2]
[408731729,1774179034624,-500.0,0.00011672,2]
[408731730,1774179034633,-500.0,0.00011672,2]
[408731731,1774179034642,-500.0,0.00011672,2]
[408731732,1774179034652,-500.0,0.00011672,2]
[408731733,1774179034662,-500.0,0.00011672,2]
[408731734,1774179034672,-500.0,0.00011672,2]
[408731735,1774179034681,-500.0,0.00011672,2]
[408731736,1774179034691,-500.0,0.00011672,2]
[408731737,1774179034701,-489.25369223,0.00011672,2]
[408731738,1774179034712,-500.0,0.00011672,2]
[408731739,1774179034722,-500.0,0.00011672,2]
[408731740,1774179034731,-547.89742499,0.00011672,2]
[408731741,1774179034740,-500.0,0.00011672,2]
[408731742,1774179034750,-167.79417368,0.00011672,2]
[408731743,1774179034759,-1000.0,0.00011672,2]
[408731744,1774179034769,-500.0,0.00011672,2]
[408731745,1774179034778,-500.0,0.00011672,3]
[408731746,1774179034788,-500.0,0.00011673,2]
[408731747,1774179034801,-548.08832153,0.00011673,2]
[408731748,1774179034811,-500.0,0.00011673,2]
[408731749,1774179034820,-500.0,0.00011673,2]
[408731750,1774179034829,-500.0,0.00011673,2]
[408731751,1774179034840,-499.91265482,0.00011673,2]
[408731752,1774179034850,-232.99661061,0.00011673,2]
[408731753,1774179034859,-500.0,0.00011673,2]
[408731754,1774179034869,-503.40747599,0.00011673,2]
[408731755,1774179034879,-500.0,0.00011673,2]
[408731756,1774179034889,-500.0,0.00011673,2]
[408731757,1774179034898,-500.0,0.00011673,2]
[408731758,1774179034907,-500.0,0.00011673,2]
[408731759,1774179034917,-500.0,0.00011673,2]
[408731760,1774179034927,-500.0,0.00011673,2]
[408731761,1774179034936,-500.80069878,0.00011673,2]
[408731762,1774179034945,-353.25,0.00011689,2]
[408731763,1774179034955,-999.99,0.00011689,2]
[408731764,1774179034964,-9999.99,0.00011689,2]
[408731765,1774179034975,-555.0,0.00011698,2]
[408731766,1774179034984,-2172.51,0.00011698,2]
[408731767,1774179034993,-150.99,0.00011698,2]
[408731768,1774179035003,-1547.55,0.00011698,2]
[408731769,1774179035012,-555.0,0.000117,2]
[408731770,1774179035022,-288.0,0.000117,2]
[408731771,1774179035031,-1800.0,0.000117,4]
[408731772,1774179035041,-166.66,0.0001173,2]
[408731773,1774179035050,-32984.9071,0.00011799,2]
[408731774,1774179035060,-150.0,0.000118,2]
[408731775,1774179035069,-2400.0,0.000118,4]
[408731776,1774179035080,-3000.0,0.000119,4]
[408731777,1774179035089,-500.0,0.00011939,2]
[408731778,1774179035099,-226.0,0.00011997,2]
[408731779,1774179035109,-185.25,0.00012049,2]
[408731780,1774179035119,-30806.20087568,0.00012052,2]
[408731781,1774179035128,-28767.79602271,0.00012054,2]
[408731782,1774179035137,-5881.42,0.00012078,2]
[408731783,1774179035147,-166.66,0.00012093,2]
[408731784,1774179035156,-7318.60737374,0.00012191,2]
[408731785,1774179035165,-500.0,0.00012213,2]
[408731786,1774179035176,-200.0,0.00012214,2]
[408731787,1774179035185,-503.38189689,0.00012221,2]
[408731788,1774179035194,-1003.83332292,0.00012221,2]
[408731789,1774179035205,-504.67871963,0.00012221,2]
[408731790,1774179035215,-1000.0,0.00012221,2]
[408731791,1774179035224,-1000.0,0.00012221,2]
[408731792,1774179035234,-503.08076831,0.00012221,2]
[408731793,1774179035243,-1000.0,0.00012221,2]
[408731794,1774179035252,-502.75676599,0.00012221,2]
[408731795,1774179035262,-1000.0,0.00012221,2]
[408731796,1774179035272,-1000.0,0.00012221,2]
[408731797,1774179035282,-500.0,0.00012225,2]
[408731798,1774179035292,-500.0,0.00012225,2]
[408731799,1774179035303,-500.0,0.00012225,2]
[408731800,1774179035312,-500.0,0.00012225,2]
[408731801,1774179035323,-500.0,0.00012225,2]
[408731802,1774179035332,-1212.01,0.00012225,2]
[408731803,1774179035346,-500.0,0.00012225,2]
[408731804,1774179035355,-500.0,0.00012225,2]
[408731805,1774179035365,-500.0,0.00012225,2]
[408731806,1774179035375,-500.0,0.00012225,2]
[408731807,1774179035386,-500.0,0.00012225,2]
[408731808,1774179035396,-500.0,0.00012225,2]
[408731809,1774179035406,-500.0,0.00012225,2]
[408731810,1774179035416,-500.0,0.00012225,2]
[408731811,1774179035425,-500.0,0.00012225,2]
[408731812,1774179035434,-500.0,0.00012225,2]
[408731813,1774179035444,-500.0,0.00012225,2]
[408731814,1774179035453,-500.0,0.00012225,2]
[408731815,1774179035463,-500.0,0.00012225,2]
[408731816,1774179035472,-500.0,0.00012225,2]
[408731817,1774179035481,-500.0,0.00012225,2]
[408731818,1774179035491,-500.0,0.00012225,2]
[408731819,1774179035500,-500.0,0.00012225,2]
[408731820,1774179035509,-500.0,0.00012225,2]
[408731821,1774179035519,-500.0,0.00012225,2]
[408731822,1774179035528,-378.49700389,0.00012225,2]
[408731823,1774179035542,-500.0,0.00012225,2]
[408731824,1774179035551,-500.0,0.00012225,2]
[408731825,1774179035562,-500.0,0.00012225,2]
[408731826,1774179035572,-500.0,0.00012225,2]
[408731827,1774179035582,-500.0,0.00012225,2]
[408731828,1774179035591,-500.0,0.00012225,2]
[408731829,1774179035600,-156.71503579,0.00012225,2]
[408731830,1774179035613,-166.66,0.00012457,2]
[408731831,1774179035622,-500.0,0.00012487,2]
[408731832,1774179035631,-1212.01,0.00012499,2]
[408731833,1774179035641,-27922.12912,0.00012512,2]
[408731834,1774179035650,-30806.20087568,0.0001253,2]
[408731835,1774179035660,-28767.79602271,0.00012535,2]
[408731836,1774179035670,-250.0,0.00012553,2]
[408731837,1774179035679,-587.0,0.00012573,2]
[408731838,1774179035690,-250.0,0.00012587,2]
[408731839,1774179035699,-300.0,0.00012587,2]
[408731840,1774179035708,-250.0,0.00012587,2]
[408731841,1774179035718,-255.0,0.00012628,2]
[408731842,1774179035727,-301.0,0.00012699,2]
[408731843,1774179035736,-6230.2691422,0.00012699,2]
[408731844,1774179035745,-784.0,0.00012701,2]
[408731845,1774179035755,-1680.0,0.00012719,2]
[408731846,1774179035764,-500.0,0.00012761,2]
[408731847,1774179035773,-200.0,0.00012762,2]
[408731848,1774179035782,-192.102823,0.00012762,2]
[408731849,1774179035791,-1500.0,0.00012768,2]
[408731850,1774179035801,-1277.04038587,0.00012768,2]
[408731851,1774179035811,-589.03973837,0.00012768,2]
[408731852,1774179035820,-1500.0,0.00012768,2]
[408731853,1774179035829,-1500.0,0.00012768,2]
[408731854,1774179035838,-1212.01,0.00012773,2]
[408731855,1774179035847,-7318.60737374,0.00012809,2]
[408731856,1774179035856,-166.66,0.0001282,2]
[408731857,1774179035865,-155.0,0.00012839,2]
[408731858,1774179035875,-150.0,0.00012879,2]
[408731859,1774179035884,-253.282181,0.00012881,2]
[408731860,1774179035893,-296.74,0.00012909,2]
[408731861,1774179035903,-150.0,0.00012956,2]
[408731862,1774179035912,-284.934172,0.00012958,2]
[408731863,1774179035921,-5642.82862896,0.00013,2]
[408731864,1774179035930,-30806.20087568,0.00013009,2]
[408731865,1774179035940,-28767.79602271,0.00013015,2]
[408731866,1774179035949,-500.0,0.00013035,2]
[408731867,1774179035959,-1212.01,0.00013047,2]
[408731868,1774179035968,-3171.13653461,0.0001305,2]
[408731869,1774179035977,-500.0,0.00013123,2]
[408731870,1774179035986,-102091.0,0.000133,2]
[408731871,1774179035996,-516.68698385,0.00013309,2]
[408731872,1774179036005,-200.0,0.0001331,2]
[408731873,1774179036014,-2008.47953738,0.00013316,2]
[408731874,1774179036024,-1012.96917258,0.00013316,2]
[408731875,1774179036033,-2000.0,0.00013316,2]
[408731876,1774179036043,-1212.01,0.00013321,2]
[408731877,1774179036052,-7318.60737374,0.00013427,2]
[408731878,1774179036063,-26796.93724315,0.00013488,2]
[408731879,1774179036730,-4009.26363253,0.00013488,2]
[408731880,1774179036741,-28767.79602271,0.00013496,2]
[408731881,1774179036750,-237.6846,0.000135,2]
[408731882,1774179036759,-1000.0,0.000135,2]
[408731883,1774179036768,-1212.01,0.00013595,2]
[408731884,1774179036778,-500.0,0.00013698,2]
[408731885,1774179036787,-500.0,0.00013698,2]
[408731886,1774179036796,-500.0,0.00013698,2]
[408731887,1774179036805,-500.0,0.00013698,2]
[408731888,1774179036814,-500.0,0.00013698,2]
[408731889,1774179036823,-500.0,0.00013698,2]
[408731890,1774179036832,-500.0,0.00013698,2]
[408731891,1774179036841,-500.0,0.00013698,2]
[408731892,1774179036850,-500.0,0.00013698,2]
[408731893,1774179036859,-500.0,0.00013698,2]
[408731894,1774179036868,-473.5787903,0.00013698,2]
[408731895,1774179036877,-500.0,0.00013698,2]
[408731896,1774179036886,-500.0,0.00013698,2]
[408731897,1774179036897,-500.0,0.00013698,2]
[408731898,1774179036908,-500.0,0.00013698,2]
[408731899,1774179036918,-500.0,0.00013698,2]
[408731900,1774179036927,-279.58766334,0.00013698,2]
[408731901,1774179036937,-500.0,0.00013698,2]
[408731902,1774179036946,-500.0,0.00013698,2]
[408731903,1774179036956,-485.30482118,0.00013698,2]
[408731904,1774179036965,-500.0,0.00013698,2]
[408731905,1774179036975,-500.0,0.00013698,2]
[408731906,1774179036992,-500.0,0.00013698,2]
[408731907,1774179037005,-500.0,0.00013698,2]
[408731908,1774179037015,-500.0,0.00013698,2]
[408731909,1774179037024,-390.47678169,0.00013698,2]
[408731910,1774179037034,-500.0,0.00013698,2]
[408731911,1774179037044,-500.0,0.00013698,2]
[408731912,1774179037053,-500.0,0.00013698,2]
[408731913,1774179037062,-500.0,0.00013698,2]
[408731914,1774179037071,-500.0,0.00013698,2]
[408731915,1774179037080,-500.0,0.00013698,2]
[408731916,1774179037088,-500.0,0.00013698,2]
[408731917,1774179037098,-500.0,0.00013698,2]
[408731918,1774179037372,-500.0,0.00013698,2]
[408731919,1774179037383,-500.0,0.00013698,2]
[408731920,1774179037392,-500.0,0.00013698,2]
[408731921,1774179037402,-500.0,0.00013698,2]
[408731922,1774179037412,-500.0,0.00013698,2]
[408731923,1774179037422,-500.0,0.00013698,2]
[408731924,1774179037432,-500.0,0.00013698,2]
[408731925,1774179037442,-500.0,0.00013698,2]
[408731926,1774179037451,-416.73502406,0.00013698,2]
[408731927,1774179037460,-500.0,0.00013698,2]
[408731928,1774179037470,-500.0,0.00013698,2]
[408731929,1774179037479,-500.0,0.00013698,2]
[408731930,1774179037489,-500.0,0.00013698,2]
[408731931,1774179037498,-513.07375623,0.00013698,2]
[408731932,1774179037507,-500.0,0.00013698,2]
[408731933,1774179037517,-500.0,0.00013698,2]
[408731934,1774179037526,-500.0,0.00013698,2]
[408731935,1774179037536,-500.0,0.00013698,2]
[408731936,1774179037547,-500.0,0.00013698,2]
[408731937,1774179037557,-500.0,0.00013698,2]
[408731938,1774179037566,-500.0,0.00013698,2]
[408731939,1774179037575,-512.39065529,0.00013698,2]
[408731940,1774179037586,-521.60337023,0.00013698,2]
[408731941,1774179037596,-500.0,0.00013698,2]
[408731942,1774179037605,-507.02157658,0.00013698,2]
[408731943,1774179037615,-500.0,0.00013698,2]
[408731944,1774179037625,-289.3873478,0.00013698,2]
[408731945,1774179037634,-500.0,0.00013698,2]
[408731946,1774179037643,-500.0,0.00013698,2]
[408731947,1774179037652,-500.0,0.00013698,2]
[408731948,1774179037662,-500.0,0.00013698,2]
[408731949,1774179037671,-500.0,0.00013698,2]
[408731950,1774179037680,-500.0,0.00013698,2]
[408731951,1774179037689,-3537.31,0.00013698,2]
[408731952,1774179037699,-3537.31,0.00013698,2]
[408731953,1774179037709,-3537.31,0.00013698,2]
[408731954,1774179037718,-3537.31,0.00013698,2]
[408731955,1774179037728,-3537.31,0.00013698,2]
[408731956,1774179037737,-3537.31,0.00013698,2]
[408731957,1774179037746,-3537.31,0.00013698,2]
[408731958,1774179037755,-3537.31,0.00013698,2]
[408731959,1774179037765,-3537.31,0.00013698,2]
[408731960,1774179037774,-3537.31,0.00013698,2]
[408731961,1774179037783,-3537.31,0.00013698,2]
[408731962,1774179037792,-3537.31,0.00013698,2]
[408731963,1774179037802,-3537.31,0.00013698,2]
[408731964,1774179037812,-3537.31,0.00013698,2]
[408731965,1774179037821,-3537.31,0.00013698,2]
[408731966,1774179037831,-3537.31,0.00013698,2]
[408731967,1774179037840,-3537.31,0.00013698,2]
[408731968,1774179037849,-3537.31,0.00013698,2]
[408731969,1774179037860,-500.0,0.00013698,2]
[408731970,1774179037870,-500.0,0.00013698,2]
[408731971,1774179037880,-500.0,0.00013698,2]
[408731972,1774179037891,-513.40658707,0.00013698,2]
[408731973,1774179037901,-500.0,0.00013698,2]
[408731974,1774179037910,-500.0,0.00013698,2]
[408731975,1774179037919,-587.11880286,0.00013698,2]
[408731976,1774179037929,-493.84764022,0.00013698,2]
[408731977,1774179037938,-500.0,0.00013698,2]
[408731978,1774179037947,-514.93719248,0.00013698,2]
[408731979,1774179037957,-500.0,0.00013698,2]
[408731980,1774179037967,-500.0,0.00013698,2]
[408731981,1774179037976,-500.0,0.00013698,2]
[408731982,1774179037985,-607.96438655,0.00013698,2]
[408731983,1774179037994,-702.82,0.00013699,2]
[408731984,1774179038003,-500.0,0.00013699,2]
[408731985,1774179038012,-500.0,0.00013699,2]
[408731986,1774179038023,-500.0,0.00013699,2]
[408731987,1774179038033,-500.0,0.00013699,2]
[408731988,1774179038042,-500.4848322,0.00013699,2]
[408731989,1774179038052,-500.0,0.00013699,2]
[408731990,1774179038061,-500.43058459,0.00013699,2]
[408731991,1774179038070,-500.74920901,0.00013699,2]
[408731992,1774179038080,-500.0,0.00013699,2]
[408731993,1774179038089,-500.0,0.00013699,2]
[408731994,1774179038098,-500.0,0.00013699,2]
[408731995,1774179038108,-500.0,0.00013699,2]
[408731997,1774179038117,-500.55967201,0.00013699,2]
[408731999,1774179038127,-500.0,0.00013699,2]
[408732000,1774179038137,-500.0,0.00013699,2]
[408732001,1774179038147,-500.0,0.00013699,2]
[408732002,1774179038158,-500.0,0.00013699,2]
[408732003,1774179038167,-500.0,0.00013699,2]
[408732004,1774179038176,-500.0,0.00013699,2]
[408732005,1774179038186,-390.12270077,0.00013699,2]
[408732006,1774179038195,-500.44177829,0.00013699,2]
[408732007,1774179038205,-500.0,0.00013699,2]
[408732008,1774179038214,-500.0,0.00013699,2]
[408732009,1774179038223,-160.37320944,0.00013699,2]
[408732010,1774179038232,-1153.37,0.000137,2]
[408732011,1774179038242,-591.44,0.000137,2]
[408732012,1774179038251,-2215.87,0.000137,2]
[408732013,1774179038260,-9476.37,0.000137,2]
[408732014,1774179038269,-9476.37,0.000137,2]
[408732015,1774179038278,-214.078834,0.0001371,7]
[408732016,1774179038287,-391.342394,0.0001372,7]
[408732017,1774179038296,-198.0437625,0.00013737,2]
[408732018,1774179038306,-1600.0,0.00013752,2]
[408732019,1774179038316,-433.0,0.00013785,2]
[408732020,1774179038326,-500.70382414,0.00013792,2]
[408732021,1774179038335,-500.0,0.00013792,2]
[408732022,1774179038345,-500.0,0.00013792,2]
[408732023,1774179038354,-763.81,0.000138,2]
[408732024,1774179038363,-1133.13,0.000138,2]
[408732025,1774179038372,-1482.55,0.000138,2]
[408732026,1774179038382,-823.0,0.00013824,2]
[408732027,1774179038392,-281.471032,0.00013832,7]
[408732028,1774179038401,-478.230879,0.00013832,7]
[408732029,1774179038411,-1000.0,0.00013835,2]
[408732030,1774179038421,-200.0,0.00013858,2]
[408732031,1774179038431,-1233.94746042,0.00013864,2]
[408732032,1774179038446,-1212.01,0.00013869,2]
[408732033,1774179038455,-574.62700701,0.0001392,2]
[408732034,1774179038464,-347.47666717,0.00013943,2]
[408732035,1774179038473,-14512.85701243,0.00013966,2]
[408732036,1774179038487,-16293.34386325,0.00013966,2]
[408732037,1774179038498,-28767.79602271,0.00013977,2]
[408732038,1774179038507,-79016.05291952,0.0001399,2]
[408732039,1774179038517,-2351.0,0.00013991,2]
[408732040,1774179038527,-500.0,0.00014,2]
[408732041,1774179038539,-511.0,0.00014,2]
[408732042,1774179038553,-500.0,0.00014012,2]
[408732043,1774179038562,-7318.60737374,0.00014046,2]
[408732044,1774179038572,-300.0,0.00014072,2]
[408732046,1774179038582,-300.0,0.00014072,2]
[408732048,1774179038592,-186.26006928,0.00014072,2]
[408732050,1774179038601,-500.0,0.0001408,2]
[408732052,1774179038610,-60000.0,0.00014115,2]
[408732054,1774179038619,-1212.01,0.00014143,2]
[408732056,1774179038628,-173.97961823,0.0001419,2]
[408732058,1774179038637,-5533.0,0.000142,3]
[408732060,1774179038647,-1000.0,0.00014247,2]
[408732062,1774179038656,-1000.0,0.00014247,2]
[408732064,1774179038665,-1000.0,0.00014247,2]
[408732066,1774179038675,-1000.0,0.00014247,2]
[408732068,1774179038684,-1000.0,0.00014247,2]
[408732070,1774179038693,-538.91632234,0.00014247,2]
[408732072,1774179038702,-803.0796662,0.00014247,2]
[408732074,1774179038711,-507.92423982,0.00014247,2]
[408732076,1774179038720,-505.99225948,0.00014247,2]
[408732077,1774179038729,-500.67270798,0.00014247,2]
[408732078,1774179038738,-1000.0,0.00014247,2]
[408732079,1774179038748,-998.52273734,0.00014247,2]
[408732080,1774179038757,-1000.0,0.00014247,2]
[408732081,1774179038766,-1000.0,0.00014247,2]
[408732082,1774179038775,-502.54227332,0.0001434,2]
[408732083,1774179038784,-151.0,0.00014405,2]
[408732084,1774179038793,-500.0,0.00014405,2]
[408732085,1774179038803,-200.0,0.00014406,2]
[408732086,1774179038812,-1212.01,0.00014417,2]
[408732087,1774179038821,-30806.20087568,0.00014445,2]
[408732088,1774179038830,-500.0,0.00014457,2]
[408732089,1774179038839,-3128.92397423,0.00014458,2]
[408732090,1774179038850,-25638.87204848,0.00014458,2]
[408732091,1774179038859,-500.0,0.00014486,2]
[408732092,1774179038870,-152.044,0.000145,2]
[408732093,1774179038880,-1001.53007131,0.0001456,2]
[408732094,1774179038889,-1000.0,0.00014628,2]
[408732095,1774179038898,-7318.60737374,0.00014664,2]
[408732096,1774179038908,-1212.01,0.00014691,2]
[408732097,1774179038917,-150.0,0.00014702,2]
[408732098,1774179038927,-500.0,0.00014795,2]
[408732099,1774179038936,-1500.0,0.00014795,2]
[408732100,1774179038945,-1500.0,0.00014795,2]
[408732101,1774179038954,-1500.0,0.00014795,2]
[408732102,1774179038963,-1158.78645597,0.00014795,2]
[408732103,1774179038973,-222.68518983,0.00014795,2]
[408732104,1774179038983,-713.64434561,0.00014795,2]
[408732105,1774179038993,-419.75064279,0.00014795,2]
[408732106,1774179039004,-186.40036,0.000149,2]
[408732107,1774179039014,-30806.20087568,0.00014924,2]
[408732108,1774179039024,-151.0,0.00014938,2]
[408732109,1774179039033,-28767.79602271,0.00014938,2]
[408732110,1774179039042,-151.0,0.00014943,2]
[408732111,1774179039051,-151.0,0.00014943,2]
[408732112,1774179039060,-151.0,0.00014943,2]
[408732113,1774179039069,-151.0,0.00014943,2]
[408732114,1774179039078,-151.0,0.00014943,2]
[408732115,1774179039088,-200.0,0.00014954,2]
[408732116,1774179039098,-1212.01,0.00014965,2]
[408732117,1774179039108,-250.0,0.00015,2]
[408732118,1774179039117,-2063.71846388,0.00015,2]
[408732119,1774179039126,-2428.27013508,0.00015,14]
[408732120,1774179039136,-8034.12425603,0.00015,2]
[408732121,1774179039147,-1042.04499952,0.00015,7]
[408732122,1774179039157,-5533.0,0.00015,5]
[408732123,1774179039166,-155.0,0.00015,3]
[408732124,1774179039175,-1057.457586,0.00015005,2]
[408732125,1774179039184,-1057.457586,0.00015005,2]
[408732126,1774179039194,-1057.457586,0.00015005,2]
[408732127,1774179039204,-1057.457586,0.00015005,2]
[408732128,1774179039213,-151.0,0.00015005,2]
[408732129,1774179039222,-151.0,0.00015005,2]
[408732130,1774179039232,-151.0,0.00015005,2]
[408732131,1774179039241,-505.10231657,0.00015005,2]
[408732132,1774179039249,-501.30450666,0.00015034,2]
[408732133,1774179039258,-736.0,0.00015057,2]
[408732134,1774179039267,-698.79,0.000151,2]
[408732135,1774179039278,-151.0,0.00015108,2]
[408732136,1774179039287,-151.0,0.00015108,2]
[408732137,1774179039295,-382.44369691,0.00015176,2]
[408732138,1774179039304,-2572.22,0.0001518,2]
[408732139,1774179039313,-7267.24274183,0.00015205,2]
[408732140,1774179039332,-1534.43885254,0.00015205,2]
[408732142,1774179042878,-789.9,0.00015205,2]
[408732143,1774179042893,-408.41840563,0.00015205,2]
[408732144,1774179042903,-1212.12502245,0.00015239,2]
[408732145,1774179042913,-2624.11662891,0.00015282,2]
[408732146,1774179042925,-483.48933023,0.00015282,2]
[408732147,1774179042945,-1382.06179791,0.00015282,2]
[408732154,1774179045320,-187.68642998,0.0001035,2]
[408732155,1774179045334,-967.31357001,0.00011573,2]
[408732156,1774179045375,-32017.59352999,0.00011573,2]
[408732157,1774179045388,-2828.93961669,0.00015282,2]
[408732158,1774179045402,-439.0,0.00015342,2]
[408732159,1774179045415,-259.99072283,0.00015342,2]
[408732160,1774179045428,-2000.0,0.00015342,2]
[408732161,1774179045442,-2000.0,0.00015342,2]
[408732162,1774179045455,-3292.0,0.0001539,2]
[408732163,1774179045469,-30806.20087568,0.00015402,2]
[408732164,1774179045482,-28767.79602271,0.00015419,2]
[408732165,1774179045495,-641.409226,0.00015421,2]